fUSD/lending_fUSD_20240818
["ID","MTS","AMOUNT","RATE_DAILY","PERIOD"]
[335240438,1724019038294,-199.99,0.0001,2]
[335240439,1724019038303,-199.99,0.0001,2]
[335240440,1724019038313,-199.99,0.0001,2]
[335240441,1724019038323,-199.99,0.0001,2]
[335240442,1724019038332,-199.99,0.0001,2]
[335240443,1724019038349,-400.0,0.0001,3]
[335240444,1724019038359,-800.0,0.0001,3]
[335240445,1724019038368,-636.04196,0.0001,2]
[335240446,1724019038378,-636.04196,0.0001,2]
[335240447,1724019038387,-636.04195,0.0001,2]
[335240448,1724019038396,-636.04195,0.0001,2]
[335240449,1724019038405,-636.04196,0.0001,2]
[335240450,1724019038415,-705.93923,0.0001,2]
[335240451,1724019038424,-705.93922,0.0001,2]
[335240452,1724019038433,-705.93923,0.0001,2]
[335240453,1724019038443,-705.93923,0.0001,2]
[335240454,1724019038452,-705.93922,0.0001,2]
[335240455,1724019038462,-705.93923,0.0001,2]
[335240456,1724019038471,-10582.01333088,0.00010009,2]
[335240457,1724019038480,-1139.1217656,0.00010009,2]
[335240458,1724019038490,-189.97458777,0.00010009,2]
[335240459,1724019038499,-2386.18469969,0.00010009,2]
[335240460,1724019038509,-284.8414088,0.00010009,2]
[335240461,1724019038519,-155.19078617,0.00010009,2]
[335240462,1724019038528,-155.00000028,0.00010009,2]
[335240463,1724019038538,-1500.0,0.00010009,2]
[335240464,1724019038548,-197.13723872,0.00010026,2]
[335240465,1724019038557,-173.87356564,0.00010026,2]
[335240466,1724019038567,-1074.67923523,0.00010026,2]
[335240467,1724019038576,-168.79478605,0.00010026,2]
[335240468,1724019038586,-174.29288092,0.00010026,2]
[335240469,1724019038595,-255.19609183,0.00010026,2]
[335240470,1724019038606,-255.72134002,0.00010026,2]
[335240471,1724019038616,-2502.58566001,0.00010026,2]
[335240472,1724019038625,-155.10812131,0.00010026,2]
[335240473,1724019038635,-1298.23330788,0.00010026,2]
[335240474,1724019038645,-270.73245212,0.00010026,2]
[335240475,1724019038654,-1666.72629683,0.00010026,2]
[335240476,1724019038664,-155.0,0.00010026,2]
[335240477,1724019038673,-246.32375864,0.00010026,2]
[335240478,1724019038682,-8628.07,0.00010067,2]
[335240479,1724019038691,-210.06299788,0.00010097,2]
[335240480,1724019038700,-249.7531079,0.00010097,2]
[335240481,1724019038709,-485.18668102,0.00010097,2]
[335240482,1724019038718,-205.64187872,0.00010097,2]
[335240483,1724019038727,-164.37927092,0.00010097,2]
[335240484,1724019038736,-305.0,0.00010097,2]
[335240485,1724019038745,-264.6397361,0.00010097,2]
[335240486,1724019038755,-528.91996067,0.00010097,2]
[335240487,1724019038764,-155.15955995,0.00010097,2]
[335240488,1724019038773,-367.87511774,0.00010097,2]
[335240489,1724019038782,-203.41395605,0.00010097,2]
[335240490,1724019038791,-306.30964202,0.00010097,2]
[335240491,1724019038800,-303.97021025,0.00010097,2]
[335240492,1724019038809,-380.32741541,0.00010097,2]
[335240493,1724019038819,-155.15699907,0.00010097,2]
[335240494,1724019038827,-177.44598664,0.00010097,2]
[335240495,1724019038836,-160.60131438,0.00010097,2]
[335240496,1724019038845,-236.34424982,0.00010097,2]
[335240497,1724019038855,-1200.0,0.000101,3]
[335240498,1724019038864,-3000.0,0.000101,2]
[335240499,1724019038874,-150.63,0.000102,2]
[335240500,1724019038883,-426.55,0.000102,2]
[335240501,1724019038892,-331.31,0.000102,2]
[335240502,1724019038902,-715.63,0.000102,2]
[335240503,1724019038911,-150.0,0.000102,2]
[335240504,1724019038920,-150.0,0.000102,2]
[335240505,1724019038929,-531.19,0.000102,2]
[335240506,1724019038938,-1061.94,0.000102,2]
[335240507,1724019038947,-426.67,0.000102,2]
[335240508,1724019038956,-150.0,0.000102,2]
[335240509,1724019038965,-421.32,0.000102,2]
[335240510,1724019038975,-835.92,0.000102,2]
[335240511,1724019038985,-426.67,0.000102,2]
[335240512,1724019038994,-531.34,0.000102,2]
[335240513,1724019039003,-356.76,0.000102,2]
[335240514,1724019039012,-835.92,0.000102,2]
[335240515,1724019039024,-150.0,0.000102,2]
[335240516,1724019039033,-421.32,0.000102,2]
[335240517,1724019039042,-150.0,0.000102,2]
[335240518,1724019039051,-835.92,0.000102,2]
[335240519,1724019039062,-531.34,0.000102,2]
[335240520,1724019039071,-421.32,0.000102,2]
[335240521,1724019039081,-426.07,0.000102,2]
[335240522,1724019039092,-356.76,0.000102,2]
[335240523,1724019039101,-835.92,0.000102,2]
[335240524,1724019039110,-150.0,0.000102,2]
[335240525,1724019039119,-421.32,0.000102,2]
[335240526,1724019039128,-356.76,0.000102,2]
[335240527,1724019039137,-421.32,0.000102,2]
[335240528,1724019039146,-150.0,0.000102,2]
[335240529,1724019039155,-531.34,0.000102,2]
[335240530,1724019039165,-773.94,0.000102,2]
[335240531,1724019039174,-528.09,0.000102,2]
[335240532,1724019039183,-150.0,0.000102,2]
[335240533,1724019039192,-355.74,0.000102,2]
[335240534,1724019039201,-421.32,0.000102,2]
[335240535,1724019039210,-150.0,0.000102,2]
[335240536,1724019039219,-421.32,0.000102,2]
[335240537,1724019039228,-150.0,0.000102,2]
[335240538,1724019039237,-418.69,0.000102,2]
[335240539,1724019039246,-1600.0,0.000102,3]
[335240540,1724019039255,-411.8166782,0.00010216,2]
[335240541,1724019039265,-10000.0,0.00010235,2]
[335240542,1724019039274,-410.42,0.000103,2]
[335240543,1724019039283,-150.0,0.000103,2]
[335240544,1724019039293,-150.0,0.000103,2]
[335240545,1724019039302,-150.0,0.000103,2]
[335240546,1724019039311,-150.0,0.000103,2]
[335240547,1724019039321,-2100.0,0.000103,3]
[335240548,1724019039331,-379.69351497,0.00010318,2]
[335240549,1724019039341,-150.0,0.000104,2]
[335240551,1724019039350,-400.0,0.000104,3]
[335240553,1724019039359,-657.08,0.00010457,2]
[335240554,1724019039368,-379.69351497,0.0001047,2]
[335240556,1724019039377,-314.40260801,0.00010471,2]
[335240558,1724019039386,-179.4461029,0.00010471,2]
[335240559,1724019039395,-194.91725764,0.00010471,2]
[335240561,1724019039405,-302.41632816,0.00010471,2]
[335240562,1724019039414,-305.0,0.00010471,2]
[335240563,1724019039423,-432.47832469,0.00010471,2]
[335240564,1724019039433,-305.0,0.00010471,2]
[335240565,1724019039442,-155.0,0.00010471,2]
[335240566,1724019039451,-400.0,0.000105,3]
[335240567,1724019039460,-170.0243198,0.00010505,2]
[335240568,1724019039469,-160.69414694,0.00010505,2]
[335240569,1724019039478,-242.65488527,0.00010505,2]
[335240570,1724019039488,-181.76294196,0.00010505,2]
[335240571,1724019039497,-155.59379774,0.00010505,2]
[335240572,1724019039506,-411.8166782,0.00010523,2]
[335240573,1724019039515,-155.0,0.00010566,2]
[335240574,1724019039524,-155.0,0.00010566,2]
[335240575,1724019039533,-647.09045449,0.00010566,2]
[335240576,1724019039543,-1478.99355451,0.00010566,2]
[335240577,1724019039552,-304.12480458,0.00010566,2]
[335240578,1724019039561,-150.0,0.00010578,2]
[335240579,1724019039570,-152.15,0.00010578,2]
[335240580,1724019039579,-150.0,0.00010578,2]
[335240581,1724019039588,-150.0,0.00010578,2]
[335240582,1724019039597,-400.0,0.000106,3]
[335240583,1724019039606,-5300.25723391,0.0001065,2]
[335240584,1724019039615,-1896.0,0.00010653,2]
[335240585,1724019039625,-3318.0,0.00010653,2]
[335240586,1724019039634,-1169.0,0.00010653,2]
[335240587,1724019039643,-2500.0,0.0001067,2]
[335240588,1724019039652,-2500.0,0.0001067,2]
[335240589,1724019039661,-150.0,0.00010678,2]
[335240590,1724019039670,-150.0,0.00010678,2]
[335240591,1724019039679,-150.0,0.00010678,2]
[335240592,1724019039688,-150.0,0.00010678,2]
[335240593,1724019039697,-150.0,0.00010678,2]
[335240594,1724019039706,-150.0,0.00010678,2]
[335240595,1724019039714,-150.0,0.00010678,2]
[335240596,1724019039723,-764.0,0.00010681,2]
[335240597,1724019039732,-500.0,0.00010684,2]
[335240598,1724019039741,-500.0,0.00010684,2]
[335240599,1724019039750,-500.0,0.00010684,2]
[335240600,1724019039759,-500.0,0.00010684,2]
[335240601,1724019039775,-500.0,0.00010684,2]
[335240602,1724019039787,-500.0,0.00010684,2]
[335240603,1724019039796,-500.0,0.00010684,2]
[335240604,1724019039805,-500.0,0.00010684,2]
[335240605,1724019039815,-530.7,0.00010684,2]
[335240606,1724019039824,-508.36,0.00010684,2]
[335240607,1724019039833,-604.72,0.00010684,2]
[335240608,1724019039843,-500.0,0.00010684,2]
[335240609,1724019039852,-500.0,0.00010684,2]
[335240610,1724019039862,-500.0,0.00010684,2]
[335240611,1724019039871,-500.0,0.00010684,2]
[335240612,1724019039880,-500.0,0.00010684,2]
[335240613,1724019039889,-500.0,0.00010684,2]
[335240614,1724019039899,-500.0,0.00010684,2]
[335240615,1724019039908,-500.0,0.00010684,2]
[335240616,1724019039917,-500.0,0.00010684,2]
[335240617,1724019039926,-500.0,0.00010684,2]
[335240618,1724019039935,-500.0,0.00010684,2]
[335240619,1724019039944,-500.0,0.00010684,2]
[335240620,1724019039954,-500.0,0.00010684,2]
[335240621,1724019039963,-500.0,0.00010684,2]
[335240622,1724019039972,-500.0,0.00010684,2]
[335240623,1724019039981,-500.0,0.00010684,2]
[335240624,1724019039991,-500.0,0.00010684,2]
[335240626,1724019040000,-500.0,0.00010684,2]
[335240627,1724019040010,-500.0,0.00010684,2]
[335240629,1724019040023,-500.0,0.00010684,2]
[335240631,1724019040034,-334.78451369,0.00010684,2]
[335240633,1724019040043,-5845.0,0.0001069,2]
[335240634,1724019040052,-218.598,0.0001069,2]
[335240636,1724019040062,-352.159,0.0001069,2]
[335240638,1724019040071,-21766.0,0.0001069,2]
[335240639,1724019040080,-920.731,0.0001069,2]
[335240641,1724019040090,-2841.12816254,0.00010699,2]
[335240643,1724019040101,-400.0,0.000107,3]
[335240644,1724019040110,-179.62485198,0.00010746,2]
[335240646,1724019040119,-171.44483397,0.00010746,2]
[335240648,1724019040128,-737.6,0.00010768,2]
[335240650,1724019040138,-171.44483392,0.00010772,2]
[335240651,1724019040147,-150.0,0.00010778,2]
[335240653,1724019040156,-6536.0782,0.00010785,2]
[335240655,1724019040165,-150.0,0.00010791,2]
[335240656,1724019040175,-150.0,0.00010791,2]
[335240657,1724019040184,-249.834,0.00010791,2]
[335240658,1724019040193,-1543.0,0.00010791,2]
[335240659,1724019040202,-622.0,0.00010791,2]
[335240660,1724019040212,-1258.0,0.00010791,2]
[335240661,1724019040221,-1927.0,0.00010791,2]
[335240662,1724019040230,-1137.0,0.00010791,2]
[335240663,1724019040239,-556.0,0.00010791,2]
[335240664,1724019040249,-810.0,0.00010791,2]
[335240665,1724019040258,-446.0,0.00010791,2]
[335240666,1724019040267,-500.0,0.00010797,2]
[335240667,1724019040276,-171.44483392,0.00010797,2]
[335240668,1724019040287,-700.0,0.000108,3]
[335240669,1724019040296,-411.8166782,0.00010808,2]
[335240670,1724019040306,-328.0,0.0001081,2]
[335240671,1724019040314,-171.44483392,0.00010823,2]
[335240672,1724019040324,-360.0,0.00010828,2]
[335240673,1724019040333,-1522.5803807,0.00010838,2]
[335240674,1724019040343,-169.46944472,0.00010845,2]
[335240675,1724019040353,-249.78,0.00010845,2]
[335240676,1724019040362,-337.4,0.00010845,2]
[335240677,1724019040371,-439.05,0.00010845,2]
[335240678,1724019040380,-151.0,0.00010845,2]
[335240679,1724019040389,-151.0,0.00010845,2]
[335240680,1724019040398,-151.0,0.00010845,2]
[335240681,1724019040407,-500.0,0.00010845,2]
[335240682,1724019040416,-500.0,0.00010845,2]
[335240683,1724019040425,-447.67039966,0.00010845,2]
[335240684,1724019040435,-500.0,0.00010845,2]
[335240685,1724019040446,-589.725077,0.00010845,2]
[335240686,1724019040455,-500.0,0.00010845,2]
[335240687,1724019040465,-500.0,0.00010845,2]
[335240688,1724019040474,-500.0,0.00010845,2]
[335240689,1724019040483,-500.0,0.00010845,2]
[335240690,1724019040492,-500.0,0.00010845,2]
[335240691,1724019040501,-500.0,0.00010845,2]
[335240692,1724019040510,-500.0,0.00010845,2]
[335240693,1724019040519,-500.0,0.00010845,2]
[335240694,1724019040528,-151.0,0.00010845,2]
[335240695,1724019040537,-151.0,0.00010845,2]
[335240696,1724019040546,-151.0,0.00010845,2]
[335240697,1724019040556,-190.636864,0.00010845,2]
[335240698,1724019040565,-190.636864,0.00010845,2]
[335240699,1724019040574,-151.0,0.00010845,2]
[335240700,1724019040583,-497.70933475,0.00010845,2]
[335240701,1724019040594,-151.0,0.00010845,2]
[335240702,1724019040603,-151.0,0.00010845,2]
[335240703,1724019040613,-151.0,0.00010845,2]
[335240704,1724019040622,-581575.26050246,0.00010845,2]
[335240705,1724019040632,-259.27418336,0.00010846,2]
[335240706,1724019040641,-5261.88030704,0.00010848,2]
[335240707,1724019040651,-38600.25317271,0.00010848,2]
[335240708,1724019040661,-29932.21917103,0.00010848,2]
[335240709,1724019040670,-29932.21917103,0.00010848,2]
[335240710,1724019040680,-171.44483392,0.00010849,2]
[335240711,1724019040689,-150.0,0.00010849,2]
[335240712,1724019040698,-771.0,0.00010849,2]
[335240713,1724019040708,-4281.0,0.00010849,2]
[335240714,1724019040717,-259.27418336,0.0001085,2]
[335240715,1724019040726,-151.0,0.0001085,2]
[335240716,1724019040736,-151.0,0.0001085,2]
[335240717,1724019040745,-151.0,0.0001085,2]
[335240718,1724019040755,-461.011902,0.0001085,2]
[335240719,1724019040764,-461.011902,0.0001085,2]
[335240720,1724019040773,-151.0,0.0001085,2]
[335240721,1724019040782,-151.0,0.0001085,2]
[335240722,1724019040792,-294.091525,0.0001085,2]
[335240723,1724019040801,-151.0,0.0001085,2]
[335240724,1724019040811,-151.0,0.0001085,2]
[335240725,1724019040820,-151.0,0.0001085,2]
[335240726,1724019040829,-151.0,0.0001085,2]
[335240727,1724019040839,-151.0,0.0001085,2]
[335240728,1724019040848,-151.0,0.0001085,2]
[335240729,1724019040856,-151.0,0.0001085,2]
[335240730,1724019040865,-151.0,0.0001085,2]
[335240731,1724019040874,-151.0,0.0001085,2]
[335240732,1724019040883,-151.0,0.0001085,2]
[335240733,1724019040893,-267.880009,0.0001085,2]
[335240734,1724019040903,-267.880009,0.0001085,2]
[335240735,1724019040912,-151.0,0.0001085,2]
[335240736,1724019040920,-151.0,0.0001085,2]
[335240737,1724019040930,-151.0,0.0001085,2]
[335240738,1724019040939,-151.0,0.0001085,2]
[335240739,1724019040948,-589.725077,0.0001085,2]
[335240740,1724019040957,-559.81637421,0.0001085,2]
[335240741,1724019040966,-500.0,0.0001085,2]
[335240742,1724019040975,-637.13506037,0.0001085,2]
[335240743,1724019040984,-500.0,0.0001085,2]
[335240744,1724019041002,-165.8579946,0.0001085,2]
[335240745,1724019041012,-270.097797,0.0001085,2]
[335240746,1724019041024,-285.917463,0.0001085,2]
[335240747,1724019041034,-151.0,0.0001085,2]
[335240748,1724019041044,-190.636864,0.0001085,2]
[335240749,1724019041054,-190.636864,0.0001085,2]
[335240750,1724019041064,-151.0,0.0001085,2]
[335240751,1724019041074,-151.0,0.0001085,2]
[335240752,1724019041258,-151.0,0.0001085,2]
[335240753,1724019041269,-151.0,0.0001085,2]
[335240754,1724019041278,-330.81006973,0.0001085,2]
[335240755,1724019041288,-1299522.7755665,0.0001085,2]
[335240756,1724019041297,-462.97459314,0.00010851,2]
[335240757,1724019041306,-259.27418336,0.00010851,2]
[335240758,1724019041316,-259.27418336,0.00010852,2]
[335240759,1724019041325,-257.03900718,0.00010852,2]
[335240760,1724019041334,-915.14996144,0.00010852,2]
[335240761,1724019041345,-4975.75531399,0.00010852,2]
[335240762,1724019041354,-259.27418336,0.00010852,2]
[335240763,1724019041363,-330.81006973,0.00010854,2]
[335240764,1724019041373,-259.27418336,0.00010854,2]
[335240765,1724019041382,-38600.25317271,0.00010855,2]
[335240766,1724019041391,-259.27418336,0.00010855,2]
[335240767,1724019041401,-151.0,0.00010858,2]
[335240768,1724019041410,-151.0,0.00010858,2]
[335240769,1724019041419,-151.0,0.00010858,2]
[335240770,1724019041429,-151.0,0.00010858,2]
[335240771,1724019041439,-172.124287,0.00010858,2]
[335240772,1724019041448,-461.011902,0.00010858,2]
[335240773,1724019041457,-461.011902,0.00010858,2]
[335240774,1724019041467,-151.0,0.00010858,2]
[335240775,1724019041476,-151.0,0.00010858,2]
[335240776,1724019041486,-151.0,0.00010858,2]
[335240777,1724019041495,-151.0,0.00010858,2]
[335240778,1724019041504,-151.0,0.00010858,2]
[335240779,1724019041513,-151.0,0.00010858,2]
[335240780,1724019041522,-151.0,0.00010858,2]
[335240781,1724019041531,-151.0,0.00010858,2]
[335240782,1724019041540,-151.0,0.00010858,2]
[335240783,1724019041549,-151.0,0.00010858,2]
[335240784,1724019041559,-151.0,0.00010858,2]
[335240785,1724019041568,-151.0,0.00010858,2]
[335240786,1724019041577,-267.880009,0.00010858,2]
[335240787,1724019041586,-267.880009,0.00010858,2]
[335240788,1724019041597,-151.0,0.00010858,2]
[335240789,1724019041607,-151.0,0.00010858,2]
[335240790,1724019041616,-151.0,0.00010858,2]
[335240791,1724019041625,-151.0,0.00010858,2]
[335240792,1724019041635,-589.725077,0.00010858,2]
[335240793,1724019041644,-151.0,0.00010858,2]
[335240794,1724019041653,-190.636864,0.00010858,2]
[335240795,1724019041662,-190.636864,0.00010858,2]
[335240796,1724019041671,-151.0,0.00010858,2]
[335240797,1724019041680,-151.0,0.00010858,2]
[335240798,1724019041689,-151.0,0.00010858,2]
[335240799,1724019041698,-151.0,0.00010858,2]
[335240800,1724019041707,-235500.08890446,0.00010858,2]
[335240801,1724019041716,-260.578245,0.00010859,2]
[335240802,1724019041725,-151.0,0.00010859,2]
[335240803,1724019041734,-151.0,0.00010859,2]
[335240804,1724019041743,-151.0,0.00010859,2]
[335240805,1724019041753,-151.0,0.00010859,2]
[335240806,1724019041762,-461.011902,0.00010859,2]
[335240807,1724019041771,-461.011902,0.00010859,2]
[335240808,1724019041780,-151.0,0.00010859,2]
[335240809,1724019041789,-151.0,0.00010859,2]
[335240810,1724019041798,-151.0,0.00010859,2]
[335240811,1724019041807,-151.0,0.00010859,2]
[335240812,1724019041816,-151.0,0.00010859,2]
[335240813,1724019041826,-151.0,0.00010859,2]
[335240814,1724019041835,-151.0,0.00010859,2]
[335240815,1724019041845,-151.0,0.00010859,2]
[335240816,1724019041854,-209.453387,0.00010859,2]
[335240817,1724019041863,-151.0,0.00010859,2]
[335240818,1724019041872,-151.0,0.00010859,2]
[335240819,1724019041881,-151.0,0.00010859,2]
[335240820,1724019041890,-267.880009,0.00010859,2]
[335240821,1724019041899,-267.880009,0.00010859,2]
[335240822,1724019041909,-151.0,0.00010859,2]
[335240823,1724019041918,-151.0,0.00010859,2]
[335240824,1724019041927,-151.0,0.00010859,2]
[335240825,1724019041936,-159.772115,0.00010859,2]
[335240826,1724019041945,-589.725077,0.00010859,2]
[335240827,1724019041955,-589.725077,0.00010859,2]
[335240828,1724019041964,-151.0,0.00010859,2]
[335240829,1724019041973,-190.636864,0.00010859,2]
[335240830,1724019041982,-190.636864,0.00010859,2]
[335240831,1724019041991,-151.0,0.00010859,2]
[335240832,1724019042000,-151.0,0.00010859,2]
[335240833,1724019042009,-151.0,0.00010859,2]
[335240834,1724019042023,-151.0,0.00010859,2]
[335240835,1724019042032,-1299522.7755665,0.00010859,2]
[335240836,1724019042041,-38600.25317271,0.00010859,2]
[335240837,1724019042051,-653.64489815,0.00010861,2]
[335240838,1724019042062,-462.97459314,0.00010861,2]
[335240839,1724019042071,-1299522.7755665,0.00010864,2]
[335240840,1724019042080,-330.81006973,0.00010864,2]
[335240841,1724019042091,-151.0,0.00010864,2]
[335240842,1724019042100,-151.0,0.00010864,2]
[335240843,1724019042109,-151.0,0.00010864,2]
[335240844,1724019042119,-151.0,0.00010864,2]
[335240845,1724019042128,-151.0,0.00010864,2]
[335240846,1724019042137,-151.0,0.00010864,2]
[335240847,1724019042147,-461.011902,0.00010864,2]
[335240848,1724019042156,-461.011902,0.00010864,2]
[335240849,1724019042165,-461.011902,0.00010864,2]
[335240850,1724019042174,-461.011902,0.00010864,2]
[335240851,1724019042183,-151.0,0.00010864,2]
[335240852,1724019042192,-151.0,0.00010864,2]
[335240853,1724019042201,-151.0,0.00010864,2]
[335240854,1724019042210,-151.0,0.00010864,2]
[335240855,1724019042219,-151.0,0.00010864,2]
[335240856,1724019042229,-151.0,0.00010864,2]
[335240857,1724019042238,-151.0,0.00010864,2]
[335240858,1724019042247,-151.0,0.00010864,2]
[335240859,1724019042256,-151.0,0.00010864,2]
[335240860,1724019042266,-151.0,0.00010864,2]
[335240862,1724019042275,-151.0,0.00010864,2]
[335240864,1724019042284,-151.0,0.00010864,2]
[335240866,1724019042293,-151.0,0.00010864,2]
[335240867,1724019042302,-151.0,0.00010864,2]
[335240868,1724019042311,-151.0,0.00010864,2]
[335240869,1724019042321,-151.0,0.00010864,2]
[335240870,1724019042330,-151.0,0.00010864,2]
[335240871,1724019042339,-151.0,0.00010864,2]
[335240872,1724019042356,-151.0,0.00010864,2]
[335240873,1724019042365,-198.170801,0.00010864,2]
[335240874,1724019042374,-267.880009,0.00010864,2]
[335240875,1724019042384,-267.880009,0.00010864,2]
[335240878,1724019042394,-267.880009,0.00010864,2]
[335240881,1724019042403,-267.880009,0.00010864,2]
[335240882,1724019042412,-151.0,0.00010864,2]
[335240883,1724019042421,-191.71095,0.00010864,2]
[335240884,1724019042430,-151.0,0.00010864,2]
[335240885,1724019042442,-151.0,0.00010864,2]
[335240886,1724019042450,-232.12543389,0.00010864,2]
[335240887,1724019042461,-589.725077,0.00010864,2]
[335240888,1724019042470,-589.725077,0.00010864,2]
[335240890,1724019042479,-589.725077,0.00010864,2]
[335240891,1724019042488,-589.725077,0.00010864,2]
[335240893,1724019042498,-255.762568,0.00010864,2]
[335240895,1724019042507,-190.636864,0.00010864,2]
[335240896,1724019042516,-190.636864,0.00010864,2]
[335240897,1724019042525,-190.636864,0.00010864,2]
[335240898,1724019042534,-190.636864,0.00010864,2]
[335240899,1724019042543,-151.0,0.00010864,2]
[335240900,1724019042552,-151.0,0.00010864,2]
[335240901,1724019042561,-151.0,0.00010864,2]
[335240902,1724019042570,-151.0,0.00010864,2]
[335240903,1724019042579,-151.0,0.00010864,2]
[335240904,1724019042588,-151.0,0.00010864,2]
[335240905,1724019042598,-151.0,0.00010864,2]
[335240906,1724019042607,-235500.08890446,0.00010864,2]
[335240907,1724019042616,-29932.21917103,0.00010864,2]
[335240908,1724019042626,-235500.08890446,0.00010865,2]
[335240909,1724019042636,-240.586164,0.00010865,2]
[335240910,1724019042645,-151.0,0.00010865,2]
[335240911,1724019042654,-151.0,0.00010865,2]
[335240912,1724019042662,-461.011902,0.00010865,2]
[335240913,1724019042672,-461.011902,0.00010865,2]
[335240914,1724019042681,-151.0,0.00010865,2]
[335240915,1724019042690,-151.0,0.00010865,2]
[335240916,1724019042699,-151.0,0.00010865,2]
[335240917,1724019042708,-237.489832,0.00010865,2]
[335240918,1724019042717,-225.606885,0.00010865,2]
[335240919,1724019042726,-151.0,0.00010865,2]
[335240920,1724019042735,-151.0,0.00010865,2]
[335240921,1724019042745,-151.0,0.00010865,2]
[335240922,1724019042754,-151.0,0.00010865,2]
[335240923,1724019042763,-198.170801,0.00010865,2]
[335240924,1724019042772,-267.880009,0.00010865,2]
[335240925,1724019042781,-267.880009,0.00010865,2]
[335240926,1724019042791,-151.0,0.00010865,2]
[335240927,1724019042800,-589.725077,0.00010865,2]
[335240928,1724019042808,-589.725077,0.00010865,2]
[335240929,1724019042818,-190.636864,0.00010865,2]
[335240930,1724019042827,-190.636864,0.00010865,2]
[335240931,1724019042836,-151.0,0.00010865,2]
[335240932,1724019042846,-462.97459314,0.00010866,2]
[335240934,1724019042855,-29932.21917103,0.00010866,2]
[335240935,1724019042864,-151.0,0.00010867,2]
[335240936,1724019042873,-151.0,0.00010867,2]
[335240937,1724019042882,-461.011902,0.00010867,2]
[335240938,1724019042891,-461.011902,0.00010867,2]
[335240939,1724019042900,-151.0,0.00010867,2]
[335240940,1724019042910,-151.0,0.00010867,2]
[335240941,1724019042918,-151.0,0.00010867,2]
[335240942,1724019042927,-151.0,0.00010867,2]
[335240943,1724019042936,-151.0,0.00010867,2]
[335240944,1724019042945,-151.0,0.00010867,2]
[335240945,1724019042955,-151.0,0.00010867,2]
[335240946,1724019042964,-198.170801,0.00010867,2]
[335240947,1724019042973,-267.880009,0.00010867,2]
[335240948,1724019042982,-267.880009,0.00010867,2]
[335240949,1724019042991,-151.0,0.00010867,2]
[335240950,1724019042999,-589.725077,0.00010867,2]
[335240951,1724019043008,-589.725077,0.00010867,2]
[335240952,1724019043022,-190.636864,0.00010867,2]
[335240953,1724019043031,-190.636864,0.00010867,2]
[335240954,1724019043040,-151.0,0.00010867,2]
[335240955,1724019043049,-38600.25317271,0.00010867,2]
[335240956,1724019043059,-330.81006973,0.00010867,2]
[335240957,1724019043068,-277753.46716036,0.00010868,2]
[335240958,1724019043077,-462.97459314,0.00010868,2]
[335240959,1724019043086,-29932.21917103,0.0001087,2]
[335240960,1724019043097,-462.97459314,0.0001087,2]
[335240961,1724019043106,-151.0,0.00010872,2]
[335240962,1724019043116,-151.0,0.00010872,2]
[335240963,1724019043125,-461.011902,0.00010872,2]
[335240964,1724019043134,-461.011902,0.00010872,2]
[335240965,1724019043143,-151.0,0.00010872,2]
[335240966,1724019043152,-151.0,0.00010872,2]